{"text_format":"1","workbook":"xlsx","n_sheets":4,"sheets":["Dashboard","Bodega de datos","Tablas dinámicas","datos atenciones"],"not_rendered":{"charts":4,"images":31,"macros":1,"external_links":0,"defined_names":2,"comments":0,"pivot_tables":24},"unopened":[],"bounds":{"document_bytes":16777216,"sheet_cells":100000,"rows_first":2000,"rows_last":500,"rows_between":2000,"halvings":0,"cell_chars":16384,"cell_head_chars":4096},"cells_cut":0,"cells_raw":0,"read":"whole","date_system":"1900"}

{"sheet":"Dashboard","index":0,"n_rows":54,"n_cols":21,"rows_kept":54,"cut":false,"hidden":false,"merged":[[53,20,54,23]]}
[]
[]
[]
[]
[]
[]
[]
[]
[]
[]
[]
[]
[]
[]
[]
[]
[]
[]
[]
[]
[]
[]
[]
[]
[]
[]
[]
[]
[]
[]
[]
[]
[]
[]
[]
[]
[]
[]
[]
[]
[]
[]
[]
[]
[]
[]
[]
[]
[]
[]
[]
[]
[]
[null,null,null,null,null,null,null,null,null,null,null,null,null,null,null,null,null,null,null,null,"Actualizar base de datos"]

{"sheet":"Bodega de datos","index":1,"n_rows":16,"n_cols":48,"rows_kept":16,"cut":false,"hidden":false,"merged":[[1,36,1,46],[1,1,1,11],[1,14,1,24],[1,26,1,35],[0,1,0,2],[1,12,1,13]]}
[null,"Actualizar tabla "]
[null,"Canal de atención a la ciudadanía",null,null,null,null,null,null,null,null,null,null,"Reporte Gestión de Peticiones RGP",null,"Entidad destinataria de la pqrsd que se está trasladando",null,null,null,null,null,null,null,null,null,null,"Pendientes de tramite en semaforo","Tipología de las pqrs pendientes de trámite",null,null,null,null,null,null,null,null,null,"PQRSD pendientes de trámite por dependencia del DADEP"]
["Mes","Presencial","Telefónico","Redes sociales","Chat","ChatBot Alameda","Correo electrónico","Petición entre entidades correo","Petición entre entidades BTE","Ventanilla de radicación","Buzón de sugerencias","Bogotá te escucha","Pqrs recibidas","Pqrs trasladadas","Secretaría de Movilidad","Secretaría de Desarrollo Económico","Secretaría de Gobierno","Secretaría de Ambiente","Secretaría de Habitat","Instituto para la Economía Social - IPES","Instituto Distrital de Recreación y Deporte -IDRD","Instituto Distrital de Participación y Acción Comunal - IDPAC","Secretaría de Planeación","IDU","Otra entidad destinataria","Pqrs pendientes de trámite al final de cada mes","derecho de petición de interés particular","derecho de petición de interés general","reclamo","queja","solicitud de acceso a la información","consulta","felicitación","solicitud de copias","sugerencias","denuncia por actos de corrupción","Dirección","Subdirección de Registro Inmobiliario","Subdirección de Gestión Inmobiliaria y de Espacio Público","Subdirección de Gestión Corporativa","Oficina de  Control Disciplinario Interno","Oficina Jurídica","Oficina Asesora de Planeación","Oficina Asesora de Comunicaciones ","Atención a la ciudadanía","Oficina de Tecnologías de la Iinformación y las comunicaciones","total","Columna1"]
["enero",128,135,0,36,0,1208,563,8,0,0,824,832,430,95,0,174,8,0,37,4,1,7,24,80,91,11,53,4,15,1,7,0,0,0,0,0,3,26,0,0,0,0,0,62,0,{"$f":"+Tabla1[[#This Row],[Dirección]]+Tabla1[[#This Row],[Subdirección de Registro Inmobiliario]]+Tabla1[[#This Row],[Subdirección de Gestión Inmobiliaria y de Espacio Público]]+Tabla1[[#This Row],[Oficina de  Control Disciplinario Interno]]+Tabla1[[#This Row],[Oficina Jurídica]]+Tabla1[[#This Row],[Oficina Asesora de Planeación]]+Tabla1[[#This Row],[Oficina Asesora de Comunicaciones ]]+Tabla1[[#This Row],[Oficina de Tecnologías de la Iinformación y las comunicaciones]]+Tabla1[[#This Row],[Atención a la ciudadanía]]+Tabla1[[#This Row],[Subdirección de Gestión Corporativa]]","v":91},{"$f":"+Tabla1[[#This Row],[Pqrs pendientes de trámite al final de cada mes]]","v":91}]
["febrero",159,168,0,33,0,84,0,10,8,0,1043,1043,622,160,0,168,7,0,62,11,2,9,39,164,111,16,79,0,6,0,10,0,0,0,0,0,5,56,2,0,0,0,0,48,0,{"$f":"+Tabla1[[#This Row],[Dirección]]+Tabla1[[#This Row],[Subdirección de Registro Inmobiliario]]+Tabla1[[#This Row],[Subdirección de Gestión Inmobiliaria y de Espacio Público]]+Tabla1[[#This Row],[Oficina de  Control Disciplinario Interno]]+Tabla1[[#This Row],[Oficina Jurídica]]+Tabla1[[#This Row],[Oficina Asesora de Planeación]]+Tabla1[[#This Row],[Oficina Asesora de Comunicaciones ]]+Tabla1[[#This Row],[Oficina de Tecnologías de la Iinformación y las comunicaciones]]+Tabla1[[#This Row],[Atención a la ciudadanía]]+Tabla1[[#This Row],[Subdirección de Gestión Corporativa]]","v":111},{"$f":"+Tabla1[[#This Row],[Pqrs pendientes de trámite al final de cada mes]]","v":111}]
["marzo",161,158,0,29,0,93,0,9,3,0,1317,1317,778,172,1,191,2,0,97,21,1,11,38,244,48,7,30,1,1,3,6,0,0,0,0,0,3,28,2,0,2,0,0,13,0,{"$f":"+Tabla1[[#This Row],[Dirección]]+Tabla1[[#This Row],[Subdirección de Registro Inmobiliario]]+Tabla1[[#This Row],[Subdirección de Gestión Inmobiliaria y de Espacio Público]]+Tabla1[[#This Row],[Oficina de  Control Disciplinario Interno]]+Tabla1[[#This Row],[Oficina Jurídica]]+Tabla1[[#This Row],[Oficina Asesora de Planeación]]+Tabla1[[#This Row],[Oficina Asesora de Comunicaciones ]]+Tabla1[[#This Row],[Oficina de Tecnologías de la Iinformación y las comunicaciones]]+Tabla1[[#This Row],[Atención a la ciudadanía]]+Tabla1[[#This Row],[Subdirección de Gestión Corporativa]]","v":48},{"$f":"+Tabla1[[#This Row],[Pqrs pendientes de trámite al final de cada mes]]","v":48}]
["abril",165,144,0,15,0,112,0,14,2,0,1302,1302,860,243,1,222,8,1,97,20,6,6,10,246,111,21,68,0,9,1,9,0,0,1,2,0,9,59,1,2,0,0,0,39,0,{"$f":"+Tabla1[[#This Row],[Dirección]]+Tabla1[[#This Row],[Subdirección de Registro Inmobiliario]]+Tabla1[[#This Row],[Subdirección de Gestión Inmobiliaria y de Espacio Público]]+Tabla1[[#This Row],[Oficina de  Control Disciplinario Interno]]+Tabla1[[#This Row],[Oficina Jurídica]]+Tabla1[[#This Row],[Oficina Asesora de Planeación]]+Tabla1[[#This Row],[Oficina Asesora de Comunicaciones ]]+Tabla1[[#This Row],[Oficina de Tecnologías de la Iinformación y las comunicaciones]]+Tabla1[[#This Row],[Atención a la ciudadanía]]+Tabla1[[#This Row],[Subdirección de Gestión Corporativa]]","v":110},{"$f":"+Tabla1[[#This Row],[Pqrs pendientes de trámite al final de cada mes]]","v":111}]
["mayo",201,168,0,5,0,107,1,2,29,0,1084,1084,806,256,0,206,6,1,102,19,2,6,16,192,163,38,88,5,21,0,10,0,0,0,1,0,5,82,0,1,3,0,0,72,0,{"$f":"+Tabla1[[#This Row],[Dirección]]+Tabla1[[#This Row],[Subdirección de Registro Inmobiliario]]+Tabla1[[#This Row],[Subdirección de Gestión Inmobiliaria y de Espacio Público]]+Tabla1[[#This Row],[Oficina de  Control Disciplinario Interno]]+Tabla1[[#This Row],[Oficina Jurídica]]+Tabla1[[#This Row],[Oficina Asesora de Planeación]]+Tabla1[[#This Row],[Oficina Asesora de Comunicaciones ]]+Tabla1[[#This Row],[Oficina de Tecnologías de la Iinformación y las comunicaciones]]+Tabla1[[#This Row],[Atención a la ciudadanía]]+Tabla1[[#This Row],[Subdirección de Gestión Corporativa]]","v":163},{"$f":"+Tabla1[[#This Row],[Pqrs pendientes de trámite al final de cada mes]]","v":163}]
["junio",176,130,0,7,0,94,0,2,26,0,1107,1107,771,226,0,157,6,2,134,12,3,3,15,213,172,48,87,4,15,2,6,0,0,2,8,0,14,101,0,0,1,0,0,56,0,{"$f":"+Tabla1[[#This Row],[Dirección]]+Tabla1[[#This Row],[Subdirección de Registro Inmobiliario]]+Tabla1[[#This Row],[Subdirección de Gestión Inmobiliaria y de Espacio Público]]+Tabla1[[#This Row],[Oficina de  Control Disciplinario Interno]]+Tabla1[[#This Row],[Oficina Jurídica]]+Tabla1[[#This Row],[Oficina Asesora de Planeación]]+Tabla1[[#This Row],[Oficina Asesora de Comunicaciones ]]+Tabla1[[#This Row],[Oficina de Tecnologías de la Iinformación y las comunicaciones]]+Tabla1[[#This Row],[Atención a la ciudadanía]]+Tabla1[[#This Row],[Subdirección de Gestión Corporativa]]","v":172},{"$f":"+Tabla1[[#This Row],[Pqrs pendientes de trámite al final de cada mes]]","v":172}]
["julio",null,null,null,null,null,null,null,null,null,null,null,null,null,null,null,null,null,null,null,null,null,null,null,null,null,null,null,null,null,null,null,null,null,null,null,null,null,null,null,null,null,null,null,null,null,{"$f":"+Tabla1[[#This Row],[Dirección]]+Tabla1[[#This Row],[Subdirección de Registro Inmobiliario]]+Tabla1[[#This Row],[Subdirección de Gestión Inmobiliaria y de Espacio Público]]+Tabla1[[#This Row],[Oficina de  Control Disciplinario Interno]]+Tabla1[[#This Row],[Oficina Jurídica]]+Tabla1[[#This Row],[Oficina Asesora de Planeación]]+Tabla1[[#This Row],[Oficina Asesora de Comunicaciones ]]+Tabla1[[#This Row],[Oficina de Tecnologías de la Iinformación y las comunicaciones]]+Tabla1[[#This Row],[Atención a la ciudadanía]]+Tabla1[[#This Row],[Subdirección de Gestión Corporativa]]","v":0},{"$f":"+Tabla1[[#This Row],[Pqrs pendientes de trámite al final de cada mes]]","v":0}]
["agosto",null,null,null,null,null,null,null,null,null,null,null,null,null,null,null,null,null,null,null,null,null,null,null,null,null,null,null,null,null,null,null,null,null,null,null,null,null,null,null,null,null,null,null,null,null,{"$f":"+Tabla1[[#This Row],[Dirección]]+Tabla1[[#This Row],[Subdirección de Registro Inmobiliario]]+Tabla1[[#This Row],[Subdirección de Gestión Inmobiliaria y de Espacio Público]]+Tabla1[[#This Row],[Oficina de  Control Disciplinario Interno]]+Tabla1[[#This Row],[Oficina Jurídica]]+Tabla1[[#This Row],[Oficina Asesora de Planeación]]+Tabla1[[#This Row],[Oficina Asesora de Comunicaciones ]]+Tabla1[[#This Row],[Oficina de Tecnologías de la Iinformación y las comunicaciones]]+Tabla1[[#This Row],[Atención a la ciudadanía]]+Tabla1[[#This Row],[Subdirección de Gestión Corporativa]]","v":0},{"$f":"+Tabla1[[#This Row],[Pqrs pendientes de trámite al final de cada mes]]","v":0}]
["septiembre",null,null,null,null,null,null,null,null,null,null,null,null,null,null,null,null,null,null,null,null,null,null,null,null,null,null,null,null,null,null,null,null,null,null,null,null,null,null,null,null,null,null,null,null,null,{"$f":"+Tabla1[[#This Row],[Dirección]]+Tabla1[[#This Row],[Subdirección de Registro Inmobiliario]]+Tabla1[[#This Row],[Subdirección de Gestión Inmobiliaria y de Espacio Público]]+Tabla1[[#This Row],[Oficina de  Control Disciplinario Interno]]+Tabla1[[#This Row],[Oficina Jurídica]]+Tabla1[[#This Row],[Oficina Asesora de Planeación]]+Tabla1[[#This Row],[Oficina Asesora de Comunicaciones ]]+Tabla1[[#This Row],[Oficina de Tecnologías de la Iinformación y las comunicaciones]]+Tabla1[[#This Row],[Atención a la ciudadanía]]+Tabla1[[#This Row],[Subdirección de Gestión Corporativa]]","v":0},{"$f":"+Tabla1[[#This Row],[Pqrs pendientes de trámite al final de cada mes]]","v":0}]
["octubre",null,null,null,null,null,null,null,null,null,null,null,null,null,null,null,null,null,null,null,null,null,null,null,null,null,null,null,null,null,null,null,null,null,null,null,null,null,null,null,null,null,null,null,null,null,{"$f":"+Tabla1[[#This Row],[Dirección]]+Tabla1[[#This Row],[Subdirección de Registro Inmobiliario]]+Tabla1[[#This Row],[Subdirección de Gestión Inmobiliaria y de Espacio Público]]+Tabla1[[#This Row],[Oficina de  Control Disciplinario Interno]]+Tabla1[[#This Row],[Oficina Jurídica]]+Tabla1[[#This Row],[Oficina Asesora de Planeación]]+Tabla1[[#This Row],[Oficina Asesora de Comunicaciones ]]+Tabla1[[#This Row],[Oficina de Tecnologías de la Iinformación y las comunicaciones]]+Tabla1[[#This Row],[Atención a la ciudadanía]]+Tabla1[[#This Row],[Subdirección de Gestión Corporativa]]","v":0},{"$f":"+Tabla1[[#This Row],[Pqrs pendientes de trámite al final de cada mes]]","v":0}]
["noviembre",null,null,null,null,null,null,null,null,null,null,null,null,null,null,null,null,null,null,null,null,null,null,null,null,null,null,null,null,null,null,null,null,null,null,null,null,null,null,null,null,null,null,null,null,null,{"$f":"+Tabla1[[#This Row],[Dirección]]+Tabla1[[#This Row],[Subdirección de Registro Inmobiliario]]+Tabla1[[#This Row],[Subdirección de Gestión Inmobiliaria y de Espacio Público]]+Tabla1[[#This Row],[Oficina de  Control Disciplinario Interno]]+Tabla1[[#This Row],[Oficina Jurídica]]+Tabla1[[#This Row],[Oficina Asesora de Planeación]]+Tabla1[[#This Row],[Oficina Asesora de Comunicaciones ]]+Tabla1[[#This Row],[Oficina de Tecnologías de la Iinformación y las comunicaciones]]+Tabla1[[#This Row],[Atención a la ciudadanía]]+Tabla1[[#This Row],[Subdirección de Gestión Corporativa]]","v":0},{"$f":"+Tabla1[[#This Row],[Pqrs pendientes de trámite al final de cada mes]]","v":0}]
["diciembre",null,null,null,null,null,null,null,null,null,null,null,null,null,null,null,null,null,null,null,null,null,null,null,null,null,null,null,null,null,null,null,null,null,null,null,null,null,null,null,null,null,null,null,null,null,{"$f":"+Tabla1[[#This Row],[Dirección]]+Tabla1[[#This Row],[Subdirección de Registro Inmobiliario]]+Tabla1[[#This Row],[Subdirección de Gestión Inmobiliaria y de Espacio Público]]+Tabla1[[#This Row],[Oficina de  Control Disciplinario Interno]]+Tabla1[[#This Row],[Oficina Jurídica]]+Tabla1[[#This Row],[Oficina Asesora de Planeación]]+Tabla1[[#This Row],[Oficina Asesora de Comunicaciones ]]+Tabla1[[#This Row],[Oficina de Tecnologías de la Iinformación y las comunicaciones]]+Tabla1[[#This Row],[Atención a la ciudadanía]]+Tabla1[[#This Row],[Subdirección de Gestión Corporativa]]","v":0},{"$f":"+Tabla1[[#This Row],[Pqrs pendientes de trámite al final de cada mes]]","v":0}]
["Acumulado año",null,null,null,null,null,null,null,null,null,null,null,null,null,null,null,null,null,null,null,null,null,null,null,null,null,null,null,null,null,null,null,null,null,null,null,null,null,null,null,null,null,null,null,null,null,{"$f":"+AU15+AU14+AU13+AU12+AU11+AU10+AU9+AV8+AU7+AU6+AU5+AU4","v":695},{"$f":"+Tabla1[[#This Row],[Pqrs pendientes de trámite al final de cada mes]]","v":0}]

{"sheet":"Tablas dinámicas","index":2,"n_rows":109,"n_cols":17,"rows_kept":109,"cut":false,"hidden":false,"merged":[[0,6,2,9],[0,1,1,4],[2,1,2,4]]}
[null,"Regresar "]
[]
[null,"al Dashboard"]
["Cantidad de atenciones brindadas a la ciudadanía por canal"]
[]
["Etiquetas de fila","Suma de Presencial",null,"Etiquetas de fila","Suma de Telefónico",null,"Etiquetas de fila","Suma de Redes sociales",null,"Etiquetas de fila","Suma de Chat",null,"Etiquetas de fila","Suma de ChatBot Alameda"]
["junio",176,null,"junio",130,null,"junio",0,null,"junio",7,null,"junio",0]
["Total general",176,null,"Total general",130,null,"Total general",0,null,"Total general",7,null,"Total general",0]
[]
[]
[]
[]
[]
[]
[]
[]
[]
[]
[]
[]
[null,{"$f":"+GETPIVOTDATA(\"Presencial\",$A$6)","v":176}]
[]
["Etiquetas de fila","Suma de Correo electrónico",null,"Etiquetas de fila","Suma de Petición entre entidades correo",null,"Etiquetas de fila","Suma de Ventanilla de radicación",null,"Etiquetas de fila","Suma de Buzón de sugerencias",null,"Etiquetas de fila","Suma de Bogotá te escucha",null,"Etiquetas de fila","Suma de Petición entre entidades BTE"]
["junio",94,null,"junio",0,null,"junio",26,null,"junio",0,null,"junio",1107,null,"junio",2]
["Total general",94,null,"Total general",0,null,"Total general",26,null,"Total general",0,null,"Total general",1107,null,"Total general",2]
[]
[]
[]
[]
[]
[]
[]
[]
[]
[]
[]
[]
[]
[]
["Cantidad de PQRS recibidas y trasladadas"]
[]
["Etiquetas de fila","Suma de Pqrs recibidas",null,"Etiquetas de fila","Suma de Pqrs trasladadas",null,null,"Etiquetas de columna"]
["junio",1107,null,"junio",771,null,"Valores","junio","Total general"]
["Total general",1107,null,"Total general",771,null,"Secretaría de Movilidad.",226,226]
[null,null,null,null,null,null,"Secretaría de Desarrollo Económico.",0,0]
[null,null,null,null,null,null,"Secretaría de Gobierno.",157,157]
[null,null,null,null,null,null,"Secretaría de Ambiente.",6,6]
[null,null,null,null,null,null,"Recreación y Deporte -IDRD.",12,12]
[null,null,null,null,null,null,"Participación y Acción Comunal - IDPAC.",3,3]
[null,null,null,null,null,null,"Instituto para la Economía Social - IPES.",134,134]
[null,null,null,null,null,null,"Suma de Secretaría de Habitat",2,2]
[null,null,null,null,null,null,"Suma de Secretaría de Planeación",3,3]
[null,null,null,null,null,null,"Suma de Otra entidad destinataria",213,213]
[null,null,null,null,null,null,"Suma de IDU",15,15]
[]
[]
[]
[]
["Cantidad de PQRSD por tipología pendientes de trámite"]
[]
[null,"Etiquetas de columna"]
["Valores","junio","Total general"]
["Derecho de petición de interés particular.",48,48]
["Derecho de petición de interés general.",87,87]
["Reclamo.",4,4]
["Queja.",15,15]
["Solicitud de acceso a la información.",2,2]
["Consulta.",6,6]
["Felicitación.",0,0]
["Solicitud de copias.",0,0]
["Sugerencias.",2,2]
["Denuncia por actos de corrupción.",8,8]
[]
[]
["PQRSD pendientes de trámite al final del mes"]
[]
["Etiquetas de fila","Pqrs pendientes de trámite al final de cada mes."]
["junio",172]
["Total general",172]
[]
[]
[]
[]
[]
[]
[]
[]
[]
[]
[]
[]
[]
[]
[]
[]
[]
[]
[]
[]
[]
[]
[]
[]
[]
[]
[]
[]
["Etiquetas de columna"]
["junio","Total general"]

{"sheet":"datos atenciones","index":3,"n_rows":42,"n_cols":13,"rows_kept":42,"cut":false,"hidden":false,"merged":[]}
[]
[null,"Puntos de atención todos los canales mes de   Septiembre 2025",null,null,null,"TEMA","(Varios elementos)",null,"TEMA","Peticiones entre entidades"]
[null,null,null,null,null,"Puntos de atención todos los canales mes de   Septiembre 2025",null,null,"Puntos de atención todos los canales mes de   Septiembre 2025"]
[null,"Etiquetas de fila","Cuenta de CANAL DE REGISTRO",null,null,"Etiquetas de fila","Cuenta de CANAL DE REGISTRO",null,"Etiquetas de fila","Cuenta de CANAL DE REGISTRO"]
[null,"PRESENCIAL",152,null,null,"PRESENCIAL",152,null,"VIRTUAL",1856]
[null,"Cad calle 26 mod-152",144,null,null,"Cad calle 26 mod-152",144,null,"Correo dadepbogota",1816]
[null,"SuperCade Movil",8,null,null,"SuperCade Movil",8,null,"Bogotá te Escucha",40]
[null,"TELEFÓNICO",261,null,null,"TELEFÓNICO",261,null,"Total general",1856]
[null,"Conmutador",220,null,null,"Conmutador",220]
[null,"Celular",41,null,null,"Celular",41]
[null,"VIRTUAL",3503,null,null,"VIRTUAL",1647]
[null,"Correo dadepbogota",2602,null,null,"Bogotá te Escucha",820]
[null,"Bogotá te Escucha",860,null,null,"Correo dadepbogota",786]
[null,"Chat Alameda",38,null,null,"Chat Alameda",38]
[null,"Ventanilla de radicación Webservice",3,null,null,"Ventanilla de radicación Webservice",3]
[null,"Total general",3916,null,null,"Total general",2060]
[]
[]
[null,null,null,"Noviembre"]
[null,null,null,null,null,"GRUPO DE VALOR","(Varios elementos)"]
[null,null,null,null,null,"TEMA","(Varios elementos)"]
[null,null,null,null,null,null,null,null,"Cuenta de GRUPO DE VALOR","Etiquetas de columna"]
[null,"Etiquetas de fila","Cuenta de CANAL DE REGISTRO",null,null,"Etiquetas de fila","Cuenta de CANAL DE REGISTRO",null,"Etiquetas de fila","VIRTUAL","Total general"]
[null,"PRESENCIAL",136,null,null,"PRESENCIAL",134,null,"Peticiones entre entidades",1502,1502,2208,{"$f":"+L24-GETPIVOTDATA(\"GRUPO DE VALOR\",$I$22,\"TEMA\",\"Peticiones entre entidades\")","v":706}]
[null,"Cad calle 26 mod-152",128,null,null,"Cad calle 26 mod-152",126,null,"Total general",1502,1502]
[null,"SuperCade Movil",8,null,null,"SuperCade Movil",8]
[null,"TELEFÓNICO",173,null,null,"TELEFÓNICO",171]
[null,"Conmutador",150,null,null,"Conmutador",148,null,"GRUPO DE VALOR","(Varios elementos)"]
[null,"Celular",23,null,null,"Celular",23,null,"TEMA","(Varios elementos)"]
[null,"VIRTUAL",3107,null,null,"VIRTUAL",1406]
[null,"Correo dadepbogota",2208,null,null,"Bsogotá te Escucha",847,null,"Etiquetas de fila","Cuenta de CANAL DE REGISTRO"]
[null,"Bsogotá te Escucha",862,null,null,"Correo dadepbogota",522,null,"PRESENCIAL",136]
[null,"Chat Alameda",37,null,null,"Chat Alameda",37,null,"Cad calle 26 mod-152",128]
[null,"Total general",3416,null,null,"Total general",1711,null,"SuperCade Movil",8]
[null,null,null,null,null,null,null,null,"TELEFÓNICO",171]
[null,null,null,null,null,null,null,null,"Conmutador",148]
[null,null,null,null,null,null,null,null,"Celular",23]
[null,null,null,null,null,null,null,null,"VIRTUAL",1456]
[null,null,null,null,null,null,null,null,"Bsogotá te Escucha",853]
[null,null,null,null,null,null,null,null,"Correo dadepbogota",566]
[null,null,null,null,null,null,null,null,"Chat Alameda",37]
[null,null,null,null,null,null,null,null,"Total general",1763]